[Event "Late-Titled-Tuesday-Blitz-April-30-2024"]
[Site "Chess.com"]
[Date "2024.04.30"]
[Round "9"]
[White "nabukatnezarr"]
[Black "IlanSchnaider"]
[Result "0-1"]
[WhiteElo "2594"]
[BlackElo "2745"]
[TimeControl "180+1"]
[EndTime "15:45:22 PDT"]
[Termination "IlanSchnaider won by resignation"]

1. d4 {[%clk 0:03:00.9]} 1... d5 {[%clk 0:03:00.1]} 2. c4 {[%clk 0:03:00.7]}
2... c6 {[%clk 0:03:00.7]} 3. Nf3 {[%clk 0:02:57.3]} 3... Nf6 {[%clk 0:03:00.9]}
4. Qc2 {[%clk 0:02:57.4]} 4... dxc4 {[%clk 0:03:00.8]} 5. e4 {[%clk 0:02:57.5]}
5... b5 {[%clk 0:03:00.2]} 6. b3 {[%clk 0:02:48.8]} 6... cxb3 {[%clk 0:02:54.4]}
7. axb3 {[%clk 0:02:49.7]} 7... e6 {[%clk 0:02:50.9]} 8. Bd2 {[%clk 0:02:49.7]}
8... Bb7 {[%clk 0:02:44.1]} 9. Ba5 {[%clk 0:02:48.7]} 9... Qc8 {[%clk
0:02:35.3]} 10. b4 {[%clk 0:02:11.5]} 10... Nbd7 {[%clk 0:02:30.7]} 11. Bd3
{[%clk 0:02:10.3]} 11... Be7 {[%clk 0:02:26.7]} 12. O-O {[%clk 0:02:09.6]} 12...
h6 {[%clk 0:02:27.4]} 13. Rc1 {[%clk 0:02:08.8]} 13... O-O {[%clk 0:02:26.5]}
14. Nbd2 {[%clk 0:02:09.4]} 14... Nb6 {[%clk 0:02:06.6]} 15. Ne5 {[%clk
0:01:55.2]} 15... Qd8 {[%clk 0:01:32.9]} 16. Nb3 {[%clk 0:01:45.2]} 16... Rc8
{[%clk 0:01:32.8]} 17. Qe2 {[%clk 0:01:40.5]} 17... Nfd7 {[%clk 0:01:25.6]} 18.
Ng4 {[%clk 0:01:19.7]} 18... Nf6 {[%clk 0:01:10.1]} 19. Ne5 {[%clk 0:01:04.1]}
19... Nfd7 {[%clk 0:01:10.2]} 20. Nf3 {[%clk 0:01:00]} 20... Qe8 {[%clk
0:00:54.6]} 21. Nc5 {[%clk 0:00:52.4]} 21... Ba8 {[%clk 0:00:40.8]} 22. Qe3
{[%clk 0:00:45.5]} 22... Bd6 {[%clk 0:00:34.1]} 23. e5 {[%clk 0:00:31.3]} 23...
Bxc5 {[%clk 0:00:24]} 24. dxc5 {[%clk 0:00:20.6]} 24... Nd5 {[%clk 0:00:23.8]}
25. Qe4 {[%clk 0:00:21.3]} 25... f5 {[%clk 0:00:23.6]} 26. exf6 {[%clk
0:00:22.2]} 26... N7xf6 {[%clk 0:00:24.1]} 27. Qd4 {[%clk 0:00:20.8]} 27... Qh5
{[%clk 0:00:16.9]} 28. h3 {[%clk 0:00:18]} 28... Nd7 {[%clk 0:00:13.9]} 29. Qe4
{[%clk 0:00:14.9]} 29... Qf5 {[%clk 0:00:13.6]} 30. Re1 {[%clk 0:00:11.3]} 30...
Rce8 {[%clk 0:00:08.7]} 31. Qxf5 {[%clk 0:00:10]} 31... exf5 {[%clk 0:00:09.6]}
32. Rxe8 {[%clk 0:00:10.4]} 32... Rxe8 {[%clk 0:00:10.5]} 33. Bxf5 {[%clk
0:00:10.9]} 33... Ne5 {[%clk 0:00:09.9]} 34. Nxe5 {[%clk 0:00:07.2]} 34... Rxe5
{[%clk 0:00:10.8]} 35. g4 {[%clk 0:00:06.9]} 35... Bb7 {[%clk 0:00:09]} 36. Bd8
{[%clk 0:00:05.2]} 36... a6 {[%clk 0:00:09.4]} 37. Bh4 {[%clk 0:00:03.8]} 37...
Nxb4 {[%clk 0:00:09.2]} 38. Bg3 {[%clk 0:00:04.1]} 38... Rxc5 {[%clk 0:00:09.6]}
39. Bd6 {[%clk 0:00:03.2]} 39... Nc2 {[%clk 0:00:04.4]} 40. Rc1 {[%clk
0:00:03.6]} 40... Rxf5 {[%clk 0:00:02.2]} 41. gxf5 {[%clk 0:00:04.3]} 41... Nd4
{[%clk 0:00:02.9]} 42. f6 {[%clk 0:00:03.9]} 42... Ne2+ {[%clk 0:00:03.1]} 43.
Kg2 {[%clk 0:00:02.2]} 43... Nxc1 {[%clk 0:00:04]} 44. fxg7 {[%clk 0:00:02.6]}
44... Kxg7 {[%clk 0:00:04.5]} 45. Kf3 {[%clk 0:00:03]} 45... a5 {[%clk
0:00:04.4]} 46. Ke4 {[%clk 0:00:03.9]} 46... a4 {[%clk 0:00:04.7]} 47. Kd4
{[%clk 0:00:03.5]} 47... Nb3+ {[%clk 0:00:05.1]} 48. Kc3 {[%clk 0:00:04.3]}
48... c5 {[%clk 0:00:04.7]} 49. f4 {[%clk 0:00:03.2]} 49... Kf6 {[%clk
0:00:05.2]} 50. Bf8 {[%clk 0:00:03.3]} 50... h5 {[%clk 0:00:05.3]} 51. h4 {[%clk
0:00:03.5]} 51... Kf5 {[%clk 0:00:05.4]} 52. Kb2 {[%clk 0:00:03.2]} 52... Bd5
{[%clk 0:00:05.5]} 53. Ka3 {[%clk 0:00:04.1]} 53... Kxf4 {[%clk 0:00:03.2]} 54.
Bd6+ {[%clk 0:00:03.9]} 54... Kg4 {[%clk 0:00:03.6]} 55. Be7 {[%clk 0:00:04.8]}
55... Bc6 {[%clk 0:00:02.4]} 56. Kb2 {[%clk 0:00:05.7]} 56... b4 {[%clk
0:00:02.6]} 57. Bf8 {[%clk 0:00:06.6]} 57... Bd5 {[%clk 0:00:02.5]} 58. Kb1
{[%clk 0:00:06.8]} 58... a3 {[%clk 0:00:02.9]} 59. Ka2 {[%clk 0:00:06]} 59...
Nd2+ {[%clk 0:00:02.8]} 60. Ka1 {[%clk 0:00:06.3]} 60... b3 {[%clk 0:00:03.4]}
61. Bg7 {[%clk 0:00:06]} 61... b2+ {[%clk 0:00:04]} 62. Bxb2 {[%clk 0:00:06.8]}
62... axb2+ {[%clk 0:00:04.9]} 63. Kxb2 {[%clk 0:00:07.7]} 63... Kxh4 {[%clk
0:00:05.6]} 64. Kc3 {[%clk 0:00:08.6]} 64... Ne4+ {[%clk 0:00:06.1]} 65. Kd3
{[%clk 0:00:09.4]} 65... Kg3 {[%clk 0:00:06.5]} 66. Ke3 {[%clk 0:00:10.3]} 66...
h4 {[%clk 0:00:06.7]} 67. Ke2 {[%clk 0:00:11.2]} 67... Kg2 {[%clk 0:00:07.2]}
68. Ke3 {[%clk 0:00:12.1]} 68... h3 {[%clk 0:00:07.8]} 69. Ke2 {[%clk 0:00:13]}
69... h2 {[%clk 0:00:08.5]} 70. Ke3 {[%clk 0:00:13.9]} 70... h1=Q {[%clk
0:00:09.2]} 71. Kf4 {[%clk 0:00:14.8]} 71... Qh4+ {[%clk 0:00:09.6]} 72. Ke5
{[%clk 0:00:15.7]} 72... Qf6+ {[%clk 0:00:09.9]} 73. Kxd5 {[%clk 0:00:15.8]}
73... Qd6+ {[%clk 0:00:10.6]} 74. Kc4 {[%clk 0:00:16.7]} 74... Qd4+ {[%clk
0:00:10.7]} 75. Kb5 {[%clk 0:00:17.6]} 75... Qb4+ {[%clk 0:00:11.2]} 76. Kc6
{[%clk 0:00:18.5]} 76... c4 {[%clk 0:00:11.8]} 77. Kd7 {[%clk 0:00:19.4]} 77...
c3 {[%clk 0:00:12.5]} 78. Ke8 {[%clk 0:00:20.3]} 78... c2 {[%clk 0:00:13.3]} 79.
Kf7 {[%clk 0:00:20.4]} 79... c1=Q {[%clk 0:00:14]} 0-1

[Event "Late-Titled-Tuesday-Blitz-April-30-2024"]
[Site "Chess.com"]
[Date "2024.04.30"]
[Round "9"]
[White "balachess2006"]
[Black "Sinquefield"]
[Result "1-0"]
[WhiteElo "2684"]
[BlackElo "2527"]
[TimeControl "180+1"]
[EndTime "15:45:28 PDT"]
[Termination "balachess2006 won on time"]

1. c4 {[%clk 0:02:57.1]} 1... d6 {[%clk 0:02:58.6]} 2. d4 {[%clk 0:02:56.7]}
2... Nf6 {[%clk 0:02:59.3]} 3. Nf3 {[%clk 0:02:56.7]} 3... Nbd7 {[%clk 0:03:00]}
4. Nc3 {[%clk 0:02:56.4]} 4... e5 {[%clk 0:03:00.7]} 5. g3 {[%clk 0:02:56.7]}
5... Be7 {[%clk 0:03:00.5]} 6. Bg2 {[%clk 0:02:55.9]} 6... O-O {[%clk
0:03:00.9]} 7. O-O {[%clk 0:02:56]} 7... c6 {[%clk 0:03:01.1]} 8. Qc2 {[%clk
0:02:51.6]} 8... Re8 {[%clk 0:03:00.4]} 9. Rd1 {[%clk 0:02:51.5]} 9... Qc7
{[%clk 0:03:00.1]} 10. b3 {[%clk 0:02:48.8]} 10... Bf8 {[%clk 0:02:59.8]} 11.
Bb2 {[%clk 0:02:45.5]} 11... e4 {[%clk 0:02:57.4]} 12. Ng5 {[%clk 0:02:45.3]}
12... d5 {[%clk 0:02:54.5]} 13. cxd5 {[%clk 0:02:42.5]} 13... cxd5 {[%clk
0:02:54.5]} 14. e3 {[%clk 0:02:37.3]} 14... Nb6 {[%clk 0:02:48.6]} 15. Rac1
{[%clk 0:02:35.4]} 15... Qd8 {[%clk 0:02:21.6]} 16. Nh3 {[%clk 0:02:23.8]} 16...
Bg4 {[%clk 0:02:20.1]} 17. Rd2 {[%clk 0:02:20.7]} 17... Qd7 {[%clk 0:02:14.6]}
18. Nf4 {[%clk 0:02:17.1]} 18... g5 {[%clk 0:02:14.6]} 19. Nfe2 {[%clk
0:02:17.3]} 19... Bf3 {[%clk 0:02:14.9]} 20. Qd1 {[%clk 0:02:13.7]} 20... h5
{[%clk 0:02:12.5]} 21. Qf1 {[%clk 0:02:13.6]} 21... Rac8 {[%clk 0:02:03.5]} 22.
Rdc2 {[%clk 0:02:13.7]} 22... a6 {[%clk 0:01:47.2]} 23. Kh1 {[%clk 0:02:10.5]}
23... Bd6 {[%clk 0:01:39.1]} 24. Ng1 {[%clk 0:02:07.2]} 24... g4 {[%clk
0:01:31.6]} 25. Nge2 {[%clk 0:01:57.3]} 25... h4 {[%clk 0:01:30.9]} 26. Kg1
{[%clk 0:01:57.4]} 26... Kg7 {[%clk 0:01:28.7]} 27. Nd1 {[%clk 0:01:53.8]} 27...
Rxc2 {[%clk 0:01:26.4]} 28. Rxc2 {[%clk 0:01:54.7]} 28... Rh8 {[%clk 0:01:26.5]}
29. Nf4 {[%clk 0:01:53.2]} 29... Qf5 {[%clk 0:01:23.7]} 30. a4 {[%clk
0:01:45.2]} 30... Qh7 {[%clk 0:01:21.1]} 31. Bxf3 {[%clk 0:01:40.4]} 31... exf3
{[%clk 0:01:15.4]} 32. Qd3 {[%clk 0:01:39.8]} 32... Ne4 {[%clk 0:01:15.6]} 33.
a5 {[%clk 0:01:24.9]} 33... hxg3 {[%clk 0:01:13.3]} 34. fxg3 {[%clk 0:01:25.8]}
34... f2+ {[%clk 0:01:11.9]} 35. Rxf2 {[%clk 0:01:25.7]} 35... Nxf2 {[%clk
0:01:08.6]} 36. Qxh7+ {[%clk 0:01:25.6]} 36... Rxh7 {[%clk 0:01:07.8]} 37. Nxf2
{[%clk 0:01:25.9]} 37... Bxf4 {[%clk 0:01:06.3]} 38. gxf4 {[%clk 0:01:26.8]}
38... Nd7 {[%clk 0:01:04.4]} 39. Nxg4 {[%clk 0:01:26.4]} 39... f5 {[%clk
0:01:04.8]} 40. Ne5 {[%clk 0:01:21.9]} 40... Nxe5 {[%clk 0:01:02]} 41. dxe5
{[%clk 0:01:22.8]} 41... Kf7 {[%clk 0:01:02.6]} 42. Bd4 {[%clk 0:01:23]} 42...
Ke6 {[%clk 0:01:03]} 43. b4 {[%clk 0:01:22.6]} 43... Kd7 {[%clk 0:00:48.6]} 44.
Kg2 {[%clk 0:01:21.2]} 44... Rh6 {[%clk 0:00:46.5]} 45. Kg3 {[%clk 0:01:19.3]}
45... Ke6 {[%clk 0:00:34.1]} 46. h4 {[%clk 0:01:10.1]} 46... Rh5 {[%clk
0:00:31]} 47. Bc5 {[%clk 0:01:05.3]} 47... Rh7 {[%clk 0:00:29.3]} 48. Kh3 {[%clk
0:01:04.2]} 48... Rh5 {[%clk 0:00:28.2]} 49. Kg3 {[%clk 0:01:00.3]} 49... Rh8
{[%clk 0:00:27.3]} 50. Bb6 {[%clk 0:01:00.4]} 50... Rh7 {[%clk 0:00:25]} 51. Bd8
{[%clk 0:00:58.1]} 51... Rg7+ {[%clk 0:00:21.3]} 52. Bg5 {[%clk 0:00:56.9]}
52... Rh7 {[%clk 0:00:19.5]} 53. Kf3 {[%clk 0:00:51.8]} 53... Rh8 {[%clk
0:00:17.7]} 54. Ke2 {[%clk 0:00:52.1]} 54... Rh7 {[%clk 0:00:13.1]} 55. Kd3
{[%clk 0:00:52.2]} 55... Rh8 {[%clk 0:00:13.1]} 56. Kd4 {[%clk 0:00:52.5]} 56...
Rc8 {[%clk 0:00:10]} 57. Kd3 {[%clk 0:00:51.5]} 57... Rc4 {[%clk 0:00:09]} 58.
h5 {[%clk 0:00:51.3]} 58... Rxb4 {[%clk 0:00:07.3]} 59. Kc2 {[%clk 0:00:50.3]}
59... Rc4+ {[%clk 0:00:06.7]} 60. Kd2 {[%clk 0:00:50.4]} 60... Ra4 {[%clk
0:00:06.4]} 61. h6 {[%clk 0:00:50.9]} 61... Ra1 {[%clk 0:00:05.3]} 62. Kc3
{[%clk 0:00:45.1]} 62... Rh1 {[%clk 0:00:03.4]} 63. Kd4 {[%clk 0:00:44.8]} 63...
Rd1+ {[%clk 0:00:02.8]} 64. Kc5 {[%clk 0:00:44.8]} 64... Rc1+ {[%clk 0:00:02.6]}
65. Kb6 {[%clk 0:00:45]} 65... Rb1+ {[%clk 0:00:01.2]} 66. Kc7 {[%clk
0:00:45.3]} 66... Rh1 {[%clk 0:00:01.2]} 67. Kxb7 {[%clk 0:00:44.9]} 67... Kd7
{[%clk 0:00:01.8]} 68. Kxa6 {[%clk 0:00:44]} 68... Kc6 {[%clk 0:00:02.5]} 69. e6
{[%clk 0:00:43.8]} 69... Kd6 {[%clk 0:00:02]} 70. e7 {[%clk 0:00:42.8]} 70...
Kd7 {[%clk 0:00:02.6]} 71. Ka7 {[%clk 0:00:42.6]} 71... Rb1 {[%clk 0:00:02.5]}
72. a6 {[%clk 0:00:40.2]} 72... Rb2 {[%clk 0:00:02.7]} 73. Bf6 {[%clk
0:00:39.3]} 73... Rh2 {[%clk 0:00:02.1]} 74. Bg5 {[%clk 0:00:39.4]} 74... Rb2
{[%clk 0:00:02.1]} 75. Ka8 {[%clk 0:00:39.1]} 75... Rb1 {[%clk 0:00:02]} 76. a7
{[%clk 0:00:39.2]} 76... Rb2 {[%clk 0:00:01.5]} 77. Bf6 {[%clk 0:00:38.4]} 77...
Rh2 {[%clk 0:00:01.8]} 78. Kb7 {[%clk 0:00:38.3]} 78... Rxh6 {[%clk 0:00:01.2]}
79. a8=Q {[%clk 0:00:37.2]} 79... Rxf6 {[%clk 0:00:02.1]} 80. e8=Q+ {[%clk
0:00:35.5]} 1-0

[Event "Late-Titled-Tuesday-Blitz-April-30-2024"]
[Site "Chess.com"]
[Date "2024.04.30"]
[Round "9"]
[White "VD_coach"]
[Black "Yerkinio"]
[Result "0-1"]
[WhiteElo "2532"]
[BlackElo "2664"]
[TimeControl "180+1"]
[EndTime "15:45:28 PDT"]
[Termination "Yerkinio won by resignation"]

1. d4 {[%clk 0:02:39]} 1... Nf6 {[%clk 0:02:58.8]} 2. Nf3 {[%clk 0:02:37.8]}
2... e6 {[%clk 0:02:59.1]} 3. c4 {[%clk 0:02:35.4]} 3... b6 {[%clk 0:02:59]} 4.
Nc3 {[%clk 0:02:32.5]} 4... Bb7 {[%clk 0:02:56.8]} 5. e3 {[%clk 0:02:32.8]} 5...
d5 {[%clk 0:02:50.6]} 6. Bd3 {[%clk 0:02:26.8]} 6... Bd6 {[%clk 0:02:45.4]} 7.
O-O {[%clk 0:02:25.6]} 7... O-O {[%clk 0:02:45.1]} 8. b3 {[%clk 0:02:24.7]} 8...
Nbd7 {[%clk 0:02:40.2]} 9. Bb2 {[%clk 0:02:24.4]} 9... a6 {[%clk 0:02:38.7]} 10.
Qe2 {[%clk 0:02:24]} 10... dxc4 {[%clk 0:02:29.6]} 11. bxc4 {[%clk 0:02:22.5]}
11... e5 {[%clk 0:02:30.2]} 12. d5 {[%clk 0:02:00.7]} 12... Nc5 {[%clk
0:02:27.2]} 13. e4 {[%clk 0:02:01]} 13... Nh5 {[%clk 0:02:18.6]} 14. Bc2 {[%clk
0:01:48.4]} 14... Nf4 {[%clk 0:02:16.5]} 15. Qe3 {[%clk 0:01:25.5]} 15... Bc8
{[%clk 0:02:12.8]} 16. Ne2 {[%clk 0:01:22.4]} 16... Nxe2+ {[%clk 0:01:53.7]} 17.
Qxe2 {[%clk 0:01:22.1]} 17... Qf6 {[%clk 0:01:42.3]} 18. Ne1 {[%clk 0:01:07.9]}
18... Qg6 {[%clk 0:01:38.8]} 19. f3 {[%clk 0:00:57.8]} 19... f5 {[%clk
0:01:20.9]} 20. exf5 {[%clk 0:00:25.1]} 20... Bxf5 {[%clk 0:01:21.8]} 21. Bxf5
{[%clk 0:00:25.2]} 21... Qxf5 {[%clk 0:01:17.4]} 22. Rd1 {[%clk 0:00:24.8]}
22... Rae8 {[%clk 0:01:15.3]} 23. Nd3 {[%clk 0:00:22.8]} 23... Nxd3 {[%clk
0:01:13.8]} 24. Qxd3 {[%clk 0:00:21.5]} 24... Bc5+ {[%clk 0:01:13.8]} 25. Kh1
{[%clk 0:00:21.2]} 25... Qxd3 {[%clk 0:01:13.7]} 26. Rxd3 {[%clk 0:00:21]} 26...
e4 {[%clk 0:01:14.3]} 27. Rd2 {[%clk 0:00:16.5]} 27... exf3 {[%clk 0:01:06.5]}
28. gxf3 {[%clk 0:00:17.4]} 28... Re3 {[%clk 0:01:02.7]} 29. Kg2 {[%clk
0:00:16.6]} 29... Rfe8 {[%clk 0:00:53.5]} 30. Bd4 {[%clk 0:00:13.5]} 30... Re2+
{[%clk 0:00:53.2]} 31. Rf2 {[%clk 0:00:13.8]} 31... Rxd2 {[%clk 0:00:41.6]} 32.
Rxd2 {[%clk 0:00:14.7]} 32... Bxd4 {[%clk 0:00:41.6]} 33. Rxd4 {[%clk
0:00:15.6]} 33... Re2+ {[%clk 0:00:42.1]} 34. Kg3 {[%clk 0:00:15.6]} 34... Rxa2
{[%clk 0:00:41.5]} 35. d6 {[%clk 0:00:13]} 35... cxd6 {[%clk 0:00:42.4]} 36.
Rxd6 {[%clk 0:00:13.1]} 36... Rb2 {[%clk 0:00:41.5]} 37. c5 {[%clk 0:00:13.1]}
37... bxc5 {[%clk 0:00:42.4]} 38. Rxa6 {[%clk 0:00:13.3]} 38... c4 {[%clk
0:00:39.8]} 39. Rc6 {[%clk 0:00:13.2]} 39... Rc2 {[%clk 0:00:39.5]} 40. Rc7
{[%clk 0:00:13.2]} 40... h6 {[%clk 0:00:35.7]} 41. h4 {[%clk 0:00:13.2]} 41...
c3 {[%clk 0:00:34]} 42. h5 {[%clk 0:00:13.3]} 42... Rc1 {[%clk 0:00:33.8]} 43.
Kg4 {[%clk 0:00:13.2]} 43... Kf8 {[%clk 0:00:20]} 44. Kf5 {[%clk 0:00:12.3]}
44... c2 {[%clk 0:00:14.5]} 45. f4 {[%clk 0:00:12.3]} 45... Ke8 {[%clk
0:00:14.6]} 46. Rc3 {[%clk 0:00:10.2]} 46... Kd7 {[%clk 0:00:14.5]} 47. Rc4
{[%clk 0:00:10.4]} 47... Kd6 {[%clk 0:00:14.8]} 48. Rc8 {[%clk 0:00:10.5]} 48...
Kd5 {[%clk 0:00:14.7]} 49. Rd8+ {[%clk 0:00:10.7]} 49... Kc4 {[%clk 0:00:15.4]}
50. Rc8+ {[%clk 0:00:10.7]} 50... Kd3 {[%clk 0:00:15.8]} 51. Rd8+ {[%clk
0:00:10.7]} 51... Ke3 {[%clk 0:00:16.4]} 52. Rc8 {[%clk 0:00:11.3]} 52... Kf3
{[%clk 0:00:16.2]} 53. Rc3+ {[%clk 0:00:10.4]} 53... Kf2 {[%clk 0:00:16.7]} 54.
Rc8 {[%clk 0:00:10]} 54... Kg3 {[%clk 0:00:17]} 55. Rc3+ {[%clk 0:00:09.3]}
55... Kh4 {[%clk 0:00:17.6]} 56. Rc7 {[%clk 0:00:04.6]} 56... Kxh5 {[%clk
0:00:17.1]} 57. Rc3 {[%clk 0:00:02.5]} 57... Kh4 {[%clk 0:00:17.1]} 58. Rc4
{[%clk 0:00:02.3]} 58... Kg3 {[%clk 0:00:13.7]} 59. Rc3+ {[%clk 0:00:02.3]}
59... Kh2 {[%clk 0:00:13.4]} 60. Rc6 {[%clk 0:00:01]} 60... Kg2 {[%clk
0:00:11.4]} 61. Rc3 {[%clk 0:00:00.9]} 61... Kf2 {[%clk 0:00:11.6]} 62. Rc6
{[%clk 0:00:00.9]} 62... g5 {[%clk 0:00:11]} 63. Rc5 {[%clk 0:00:01.8]} 63...
gxf4 {[%clk 0:00:10.2]} 64. Kxf4 {[%clk 0:00:02.7]} 64... Ke2 {[%clk 0:00:10]}
65. Ke4 {[%clk 0:00:03.2]} 65... h5 {[%clk 0:00:08.8]} 66. Rxh5 {[%clk
0:00:02.4]} 66... Rf1 {[%clk 0:00:07.8]} 67. Rh2+ {[%clk 0:00:03.3]} 67... Kd1
{[%clk 0:00:08]} 68. Kd3 {[%clk 0:00:03.3]} 68... c1=Q {[%clk 0:00:08.2]} 0-1

[Event "Late-Titled-Tuesday-Blitz-April-30-2024"]
[Site "Chess.com"]
[Date "2024.04.30"]
[Round "9"]
[White "Heliosis11"]
[Black "BabageldiAnnaberdiyev"]
[Result "0-1"]
[WhiteElo "2414"]
[BlackElo "2604"]
[TimeControl "180+1"]
[EndTime "15:45:30 PDT"]
[Termination "BabageldiAnnaberdiyev won on time"]

1. e4 {[%clk 0:03:00.9]} 1... e6 {[%clk 0:02:59.4]} 2. d4 {[%clk 0:03:00.8]}
2... d5 {[%clk 0:02:59.9]} 3. Nc3 {[%clk 0:03:01.5]} 3... Nf6 {[%clk 0:02:58.5]}
4. e5 {[%clk 0:03:02]} 4... Nfd7 {[%clk 0:02:58.5]} 5. f4 {[%clk 0:03:02.5]}
5... c5 {[%clk 0:02:58.7]} 6. Nf3 {[%clk 0:03:03.2]} 6... Nc6 {[%clk 0:02:59]}
7. Be3 {[%clk 0:03:01.6]} 7... a6 {[%clk 0:02:59.3]} 8. Qd2 {[%clk 0:02:59.4]}
8... b5 {[%clk 0:02:58.9]} 9. Bd3 {[%clk 0:02:52.7]} 9... Qb6 {[%clk 0:02:56.8]}
10. Qf2 {[%clk 0:02:46.9]} 10... c4 {[%clk 0:02:55.3]} 11. Be2 {[%clk
0:02:46.3]} 11... b4 {[%clk 0:02:54.7]} 12. Nd1 {[%clk 0:02:46.5]} 12... g6
{[%clk 0:02:52]} 13. O-O {[%clk 0:02:43.2]} 13... h5 {[%clk 0:02:50.6]} 14. c3
{[%clk 0:02:39.7]} 14... a5 {[%clk 0:02:50.1]} 15. Ng5 {[%clk 0:02:30.4]} 15...
Ba6 {[%clk 0:02:33.4]} 16. Qg3 {[%clk 0:01:31.6]} 16... Ne7 {[%clk 0:02:30.5]}
17. Bd2 {[%clk 0:01:27.3]} 17... Nf5 {[%clk 0:02:29.3]} 18. Qf2 {[%clk
0:01:27.4]} 18... Be7 {[%clk 0:02:28.3]} 19. Ne3 {[%clk 0:01:26.1]} 19... a4
{[%clk 0:02:07.6]} 20. Nxf5 {[%clk 0:01:24.1]} 20... gxf5 {[%clk 0:02:08.5]} 21.
Bf3 {[%clk 0:01:20.3]} 21... Nf8 {[%clk 0:01:53]} 22. Qe2 {[%clk 0:01:09]} 22...
h4 {[%clk 0:01:53.1]} 23. Be3 {[%clk 0:00:50.7]} 23... Rb8 {[%clk 0:01:51.3]}
24. Bd2 {[%clk 0:00:42.8]} 24... Ng6 {[%clk 0:01:50.7]} 25. Bh5 {[%clk
0:00:33.8]} 25... Kf8 {[%clk 0:01:46.9]} 26. Nh3 {[%clk 0:00:25.8]} 26... Kg7
{[%clk 0:01:44]} 27. Bf3 {[%clk 0:00:24.8]} 27... a3 {[%clk 0:01:37.4]} 28. Rab1
{[%clk 0:00:19.4]} 28... axb2 {[%clk 0:01:33]} 29. Rxb2 {[%clk 0:00:19.7]} 29...
b3 {[%clk 0:01:33.1]} 30. Qe3 {[%clk 0:00:13.4]} 30... Qa5 {[%clk 0:01:32.2]}
31. axb3 {[%clk 0:00:13.9]} 31... cxb3 {[%clk 0:01:32.7]} 32. Re1 {[%clk
0:00:13.6]} 32... Bc4 {[%clk 0:01:32.3]} 33. Rbb1 {[%clk 0:00:14.2]} 33... b2
{[%clk 0:01:31.9]} 34. Be2 {[%clk 0:00:13.3]} 34... Ba2 {[%clk 0:01:24.4]} 35.
c4 {[%clk 0:00:13.8]} 35... Qa4 {[%clk 0:01:20.3]} 36. cxd5 {[%clk 0:00:10.9]}
36... Bxb1 {[%clk 0:01:20.5]} 37. Rxb1 {[%clk 0:00:11.8]} 37... Qa2 {[%clk
0:01:15]} 38. Bd3 {[%clk 0:00:11.9]} 38... Qxd5 {[%clk 0:01:15.3]} 39. Nf2
{[%clk 0:00:10.9]} 39... Rhc8 {[%clk 0:01:11.3]} 40. Nd1 {[%clk 0:00:08.9]}
40... Rd8 {[%clk 0:01:07.7]} 41. Bc3 {[%clk 0:00:08.3]} 41... Ba3 {[%clk
0:01:03.5]} 42. Qd2 {[%clk 0:00:05.3]} 42... Rb3 {[%clk 0:00:59.2]} 43. Nxb2
{[%clk 0:00:04.9]} 43... Bxb2 {[%clk 0:00:52]} 44. Rxb2 {[%clk 0:00:05.2]} 44...
Rxc3 {[%clk 0:00:50.4]} 45. Qxc3 {[%clk 0:00:05.7]} 45... Qxd4+ {[%clk
0:00:50.8]} 46. Qxd4 {[%clk 0:00:06.2]} 46... Rxd4 {[%clk 0:00:50.4]} 47. Be2
{[%clk 0:00:05.1]} 47... Nxf4 {[%clk 0:00:50.7]} 48. Bf3 {[%clk 0:00:05.6]}
48... Ng6 {[%clk 0:00:47.2]} 49. Re2 {[%clk 0:00:05.1]} 49... Rb4 {[%clk
0:00:46.8]} 50. g3 {[%clk 0:00:05]} 50... hxg3 {[%clk 0:00:45.4]} 51. hxg3
{[%clk 0:00:05.4]} 51... Rb5 {[%clk 0:00:45.6]} 52. Kf2 {[%clk 0:00:04.8]} 52...
Rxe5 {[%clk 0:00:45.6]} 53. Rb2 {[%clk 0:00:04.4]} 53... Rc5 {[%clk 0:00:43.5]}
54. Rb7 {[%clk 0:00:05]} 54... Kf6 {[%clk 0:00:41.3]} 55. Be2 {[%clk 0:00:03.6]}
55... Ne5 {[%clk 0:00:41.4]} 56. Bf1 {[%clk 0:00:03.3]} 56... Rc3 {[%clk
0:00:40.9]} 57. Be2 {[%clk 0:00:02.4]} 57... Ng4+ {[%clk 0:00:38.3]} 58. Bxg4
{[%clk 0:00:02.7]} 58... fxg4 {[%clk 0:00:38.9]} 59. Rb4 {[%clk 0:00:03.6]}
59... Kg5 {[%clk 0:00:37.5]} 60. Rb5+ {[%clk 0:00:03.9]} 60... f5 {[%clk
0:00:35]} 61. Rb8 {[%clk 0:00:04.5]} 61... Rc2+ {[%clk 0:00:33.3]} 62. Kg1
{[%clk 0:00:04.4]} 62... e5 {[%clk 0:00:32.7]} 63. Rg8+ {[%clk 0:00:04.8]} 63...
Kf6 {[%clk 0:00:32.1]} 64. Rf8+ {[%clk 0:00:05.2]} 64... Ke6 {[%clk 0:00:32.6]}
65. Re8+ {[%clk 0:00:05.4]} 65... Kd5 {[%clk 0:00:33]} 66. Rf8 {[%clk
0:00:03.1]} 66... Ke4 {[%clk 0:00:32.9]} 67. Re8 {[%clk 0:00:03.7]} 67... f4
{[%clk 0:00:29.5]} 68. gxf4 {[%clk 0:00:03.9]} 68... Kxf4 {[%clk 0:00:30.4]} 69.
Rf8+ {[%clk 0:00:04.2]} 69... Kg3 {[%clk 0:00:30.1]} 70. Rf1 {[%clk 0:00:04.1]}
70... e4 {[%clk 0:00:29.3]} 71. Re1 {[%clk 0:00:04.3]} 71... Kf4 {[%clk
0:00:22.4]} 72. Kf1 {[%clk 0:00:03.3]} 72... g3 {[%clk 0:00:21.7]} 73. Kg1
{[%clk 0:00:03.6]} 73... e3 {[%clk 0:00:21.6]} 74. Rf1+ {[%clk 0:00:01.8]} 74...
Kg4 {[%clk 0:00:20.7]} 0-1